Workbook

Sheet Dichiarazione
B6: ANNO 2023 | L6: Le celle di questo colore possono essere modificate
N7: CONTEGGIO DELLE UNITA' IMMOBILIARI PER TIPO TARIFFA | Q7: CALCOLO NUMERO COMPONENTI TOTALI PER LE UNITA' CON STESSE CARATTERISTICHE | Y7: QUOTA FISSA ACQUEDOTTO
B8: DICHIARAZIONE DELLA COMPOSIZIONE DEI NUCLEI FAMILIARI PRESENTI NELLE UNITA' IMMOBILIARI DEL CONDOMINIO | G8: Inserisci qui i dati della tua unità immobiliare | M8: TARIFFA ACQUEDOTTO DA APPLICARE | N8: CONTEGGIO UNITA' DOMESTICO RESIDENTI | O8: CONTEGGIO UNITA' DOMESTICO NON RESIDENTI | P8: CONTEGGIO UNITA' DOMESTICO NON DOMESTICHE | Y8: DOMESTICO RESIDENTI | Z8: DOMESTICO NON RESIDENTI | AA8: NON DOMESTICHE
Y9: ='FISSA ACQUEDOTTO_RES'!J42 -> 0 | Z9: ='FISSA ACQUEDOTTO_NRES'!J42 -> 0 | AA9: ='FISSA ACQUEDOTTO_NDOM'!J42 -> 0
H10: Seleziona dall'elenco il tuo tipo di utenza | X10: singola unità | Y10: =IFERROR(ROUND((Y9/R23)*T23,2),0) -> 0 | Z10: =IFERROR(ROUND(Z9/(O24+O28+O29),2),0) -> 0 | AA10: =IFERROR(ROUND(AA9/P26,2),0) -> 0
B11: ATO di appartenenza | L11: PASSO 1: Inserire ATO DI APPARTENZA DEL PUNTO DI FORNITURA
B12: Consumo annuo (m3) | H12: =IF(AND(H11="DOMESTICO NON RESIDENTE",C24=""),"Non risultano utenze di questo tipo",IF(AND(H11="NON DOMESTICO",C26=""),"Non risultano utenze di questo tipo","")) ->  | L12: PASSO 2: Inserire CONSUMO ANNUO DEL CONTATORE CONDOMINIALE in Metri Cubi
B13: Totale unità immobiliari servite dal contatore | C13: =C15+C16+C17+C18+C19+C20+C21+C22+C24+C26+C28+C29 -> 0 | H13: adesso: | Q13: COMPONENTI RESIDENTI | Y13: QUOTA FISSA FOGNATURA E/O DEPURAZIONE
B14: UTENZE DOMESTICHE RESIDENTI: | H14: Seleziona dall'elenco il numero dei componenti della tua unità immobiliare | Y14: DOMESTICO RESIDENTI | Z14: DOMESTICO NON RESIDENTI | AA14: NON DOMESTICHE
B15: Numero unità immobiliari con 1 residente | D15: =IF(ISNUMBER(C15),1,"") ->  | E15: =IF(AND(C15>0,D15=$H$15),"X","") ->  | L15: PASSO 3: Inserire il numero delle unità immbiliari | M15: tariffa DOM. RESIDENTE | N15: =C15 -> 0 | Q15: 1 | R15: =N15*Q15 -> 0 | T15: =IF(E15="X",D15,"") ->  | Y15: ='FISSA DEPFOGNA_RES'!J42 -> 0 | Z15: =FISSA_DEPFOGNA_NRES!J42 -> 0 | AA15: ='FISSA DEPFOGNA_NDOM'!J42 -> 0
B16: Numero unità immobiliari con 2 residenti | D16: =IF(ISNUMBER(C16),2,"") ->  | H16: =IFERROR(IF(H15="","",VLOOKUP(H15,$D$15:$D$22,1,FALSE)),dati!G1) ->  | M16: tariffa DOM. RESIDENTE | N16: =C16 -> 0 | Q16: 2 | R16: 0 | X16: singola unità | Y16: =IFERROR(ROUND((Y15/R23)*T23,2),0) -> 0 | Z16: =IFERROR(ROUND(Z15/(O24+O28+O29),2),0) -> 0 | AA16: =IFERROR(ROUND(AA15/P26,2),0) -> 0
B17: Numero unità immobiliari con 3 residenti | D17: =IF(ISNUMBER(C17),3,"") ->  | M17: tariffa DOM. RESIDENTE | N17: 0 | Q17: 3 | R17: 0
B18: Numero unità immobiliari con 4 residenti | D18: =IF(ISNUMBER(C18),4,"") ->  | M18: tariffa DOM. RESIDENTE | N18: 0 | Q18: 4 | R18: 0
B19: Numero unità immobiliari con 5 residenti | D19: =IF(ISNUMBER(C19),5,"") ->  | M19: tariffa DOM. RESIDENTE | N19: 0 | Q19: 5 | R19: 0
B20: Numero unità immobiliari con 6 residenti | D20: =IF(ISNUMBER(C20),6,"") ->  | G20: STIMA DEL CONSUMO ANNUO DELLA TUA UTENZA (m3) | M20: tariffa DOM. RESIDENTE | N20: 0 | Q20: 6 | R20: 0
B21: Numeronità immobiliari con 7 residenti | D21: =IF(ISNUMBER(C21),7,"") ->  | M21: tariffa DOM. RESIDENTE | N21: 0 | Q21: 7 | R21: 0
B22: Numero unità immobiliari con 8 residenti e oltre | D22: =IF(ISNUMBER(C22),"8 e oltre","") ->  | M22: tariffa DOM. RESIDENTE | N22: 0 | Q22: 8 | R22: 0 | W22: consumo unità immobiliare
B23: UTENZE DOMESTICHE NON RESIDENTI: | G23: =VLOOKUP(H11,$V$23:$W$25,2,FALSE) ->  | R23: =SUM(R15:R22) -> 0 | S23: =ROUND(N33/R23,0) ->  | T23: =SUM(T15:T22) -> 0 | V23: DOMESTICO RESIDENTE | W23: =S23*T23 -> 
B24: Numero unità immobiliari ad uso domestico non residenti | M24: tariffa DOM. NON RESIDENTE | O24: =C24 -> 0 | S24: consumo pro capite | T24: num componenti | V24: DOMESTICO NON RESIDENTE | W24: =ROUND(O33/(O24+O28+O29),0) -> 
B25: UTENZE NON DOMESTICHE: | V25: NON DOMESTICO | W25: =P33/P26 -> 
B26: Numero unità immobiliari occupate ad uso non domestico | G26: STIMA DELL'IMPORTO TOTALE ANNUO DELLA TUA UTENZA (*) | M26: tariffa NON DOMESTICO | P26: =C26 -> 0
B27: UTENZE NON DICHIARATE/NON OCCUPATE:
B28: Numero unità immobiliari non dichiarate | G28: =J44 ->  | M28: tariffa DOM. NON RESIDENTE | O28: =C28 -> 0
B29: Numero unità immobiliari non occupate (vuote) | M29: tariffa DOM. NON RESIDENTE | O29: =C29 -> 0
C30: =SUM(B15:C29) -> 0 | N30: =SUM(N11:N29) -> 0 | O30: =SUM(O11:O29) -> 0 | P30: =SUM(P15:P29) -> 0
M33: CALCOLO DI ATTRIBUZIONE DEI CONSUMI ALLE SINGOLE UNITÀ IMMOBILIARI | N33: =ROUND(C12/C13*N30,0) ->  | O33: =ROUND(C12/C13*O30,0) ->  | P33: =C12-N33-O33 -> 
B34: TOTALE CONSUMI E IMPORTI ANNUI DEL CONDOMINIO | C34: Consumo annuo (m3) | E34: Importo annuo (euro) | G34: (*) DETTAGLIO IMPORTI UTENZA | J34: Importo annuo (euro)
B35: ACQUEDOTTO | G35: ACQUEDOTTO
B36: Quota acquedotto domestico residente | C36: =N33 ->  | E36: =IFERROR('DOM RES'!J14,0) -> 0 | G36: ="Quota acquedotto"&" "&LOWER(H11) -> Quota acquedotto | J36: =IF(H11="DOMESTICO RESIDENTE",'DOM RES_singolo'!J14,IF(Dichiarazione!H11="DOMESTICO NON RESIDENTE",'DOM NON RES_singolo'!J14,IF(Dichiarazione!H11="NON DOMESTICO",'NON DOM_singolo'!J14))) -> FALSE
B37: Quota acquedotto domestico non residente | C37: =O33 ->  | E37: =IFERROR('DOM NON RES'!J14,0) -> 0 | G37: FOGNATURA
B38: Quota acquedotto non domestico | C38: =P33 ->  | E38: =IFERROR('NON DOM'!J14,0) -> 0 | G38: Quota fognatura | J38: =FOG_singolo!J14 -> 
B39: FOGNATURA | G39: DEPURAZIONE
B40: Quota fognatura | E40: =FOG!J14 -> 0 | G40: Quota depurazione | J40: =DEP_singolo!J14 -> 
B41: DEPURAZIONE | G41: QUOTA FISSA
B42: Quota depurazione | E42: =DEP!J14 -> 0 | G42: ="Quota fissa acquedotto"&" "&LOWER(H11) -> Quota fissa acquedotto | J42: =IF(H11="DOMESTICO RESIDENTE",Y10,IF(H11="DOMESTICO NON RESIDENTE",Z10,IF(H11="NON DOMESTICO",AA10,""))) -> 
B43: QUOTA FISSA | G43: ="Quota fissa fognatura e/o depurazione"&" "&LOWER(H11) -> Quota fissa fognatura e/o depurazione | J43: =IF(H11="DOMESTICO RESIDENTE",Y16,IF(H11="DOMESTICO NON RESIDENTE",Z16,IF(H11="NON DOMESTICO",AA16,""))) -> 
B44: Quota fissa acquedotto domestico residente | E44: =IFERROR('FISSA ACQUEDOTTO_RES'!J42,0) -> 0 | G44: TOTALE | J44: =J36+J38+J40+J42+J43 -> 
B45: Quota fissa acquedotto domestico non residente | E45: =IFERROR('FISSA ACQUEDOTTO_NRES'!J42,0) -> 0
B46: Quota fissa acquedotto non domestico | E46: =IFERROR('FISSA ACQUEDOTTO_NDOM'!J42,0) -> 0
B47: Quota fissa fognatura e/o depurazione domestico residente | E47: =IFERROR('FISSA DEPFOGNA_RES'!J42,0) -> 0
B48: Quota fissa fognatura e/o depurazione domestico non residente | E48: =IFERROR(FISSA_DEPFOGNA_NRES!J42,0) -> 0
B49: Quota fissa fognatura e/o depurazione non domestico | E49: =IFERROR('FISSA DEPFOGNA_NDOM'!J42,0) -> 0
B50: TOTALE | C50: =SUM(C36:C38) ->  | E50: =SUM(E36:E38,E40,E42,E44:E49) -> 0

Sheet FISSA DEPFOGNA_RES (hidden)
A1: cdi_tariffa | B1: descrizione tariffa | C1: data variazione tariffaria
A2: 10016771 | B2: MULTIPLO QUOTA FISSA DEP/FOGNA DOM RESIDENTE ATO MO | C2: 2023-01-01
A7: scaglione | B7: consumo scaglione | C7: importo per scaglione
A8: 1 | B8: 999999999 | C8: 4.308452
A21: codi_tariffa | B21: descrizione tariffa | C21: data variazione tariffaria
A22: 10018718 | B22: MULTIPLO QUOTA FISSA DEP/FOGNA DOM RESIDENTE ATO MN | C22: 2023-01-01
A27: scaglione | B27: consumo scaglione | C27: importo per scaglione
A28: 1 | B28: 999999999 | C28: 18.619225
D35: numero componenti | F35: numero giorni
D36: 1 | F36: 365 | H36: consumo | I36: =Dichiarazione!N33 -> 
F37: =DATE(Dichiarazione!C6,12,31)-DATE(Dichiarazione!C6,1,1)+1 -> 366 | H37: ATO | I37: =IF(Dichiarazione!C11="MO",1,2) -> 2
H38: Tariffa
B40: Numero Unità | E40: Articolazione per numero componenti | I40: Tariffa €/anno
B42: =SUM(Dichiarazione!C15:C22) -> 0 | F42: 999999999 | G42: =IF(I36-F42>=0,F42,I36) ->  | I42: =IF(I37=1,C8,C28) -> 18.619225 | J42: =ROUND(B42*I42,2) -> 0

Sheet FISSA_DEPFOGNA_NRES (hidden)
A1: cdi_tariffa | B1: descrizione tariffa | C1: data variazione tariffaria
A2: 10016774 | B2: MULTIPLO QUOTA FISSA DEP/FOGNA DOM NON RESIDENTE ATO MO | C2: 2023-01-01
A7: scaglione | B7: consumo scaglione | C7: importo per scaglione
A8: 1 | B8: 999999999 | C8: 18.332464
A21: codi_tariffa | B21: descrizione tariffa | C21: data variazione tariffaria
A22: 10018715 | B22: MULTIPLO QUOTA FISSA DEP/FOGNA DOM NON RESIDENTE ATO MN | C22: 2023-01-01
A27: scaglione | B27: consumo scaglione | C27: importo per scaglione
A28: 1 | B28: 999999999 | C28: 18.619225
D35: numero componenti | F35: numero giorni
D36: 1 | F36: 365 | H36: consumo | I36: =Dichiarazione!O33 -> 
F37: =DATE(Dichiarazione!C6,12,31)-DATE(Dichiarazione!C6,1,1)+1 -> 366 | H37: ATO | I37: =IF(Dichiarazione!C11="MO",1,2) -> 2
H38: Tariffa
B40: Numero Unità | E40: Articolazione per numero componenti | I40: Tariffa €/mc
B42: =Dichiarazione!C24+SUM(Dichiarazione!C28:C29) -> 0 | F42: 999999999 | G42: =IF(I36-F42>=0,F42,I36) ->  | I42: =IF(I37=1,C8,C28) -> 18.619225 | J42: =ROUND(B42*I42,2) -> 0

Sheet DEP (hidden)
D2: numero componenti | F2: numero giorni
D3: 1 | F3: 365 | H3: consumo | I3: =Dichiarazione!C12 -> 0
F4: =DATE(Dichiarazione!C6,12,31)-DATE(Dichiarazione!C6,1,1)+1 -> 366 | H4: ATO | I4: =IF(Dichiarazione!C11="MO",1,2) -> 2
H5: Tariffa | I5: TAR_DEP
B7: Articolazione base | E7: Articolazione per numero componenti | I7: Tariffa €/mc
A9: 1 | B9: 0 | C9: =IF($I$4=1,INDIRECT($I$5&"!B8"),INDIRECT($I$5&"!B28")) -> 999999999 | E9: =IF(C9=MAX($C$9:$C$12),MAX(C9:C12),ROUND(C9*$D$3*LOOKUP($D$3,$A$19:$B$26,$B$19:$B$26)/$F$4*$F$3,0)) -> 999999999 | F9: =E9 -> 999999999 | G9: =IF($I$3-F9>0,F9,IF($I$3-F9<=0,$I$3)) -> 0 | I9: =IF($I$4=1,INDIRECT($I$5&"!C8"),INDIRECT($I$5&"!C28")) -> 0.752226 | J9: =ROUND(G9*I9,2) -> 0
A10: 2 | B10: =IF(C10=0,0,C9+1) -> 0 | C10: =IF($I$4=1,INDIRECT($I$5&"!B9"),INDIRECT($I$5&"!B29")) -> 0 | E10: =IF(C10=MAX($C$9:$C$12),MAX(C10:C13),ROUND(C10*$D$3*LOOKUP($D$3,$A$19:$B$26,$B$19:$B$26)/$F$4*$F$3,0)) -> 0 | F10: =E10-F9 -> -999999999 | G10: =IF($I$3-(G9+F10)>0,F10,IF(($I$3-(G9+F10))<=0,$I$3-G9)) -> -999999999 | I10: =IF($I$4=1,INDIRECT($I$5&"!C9"),INDIRECT($I$5&"!C29")) -> 0 | J10: =ROUND(G10*I10,2) -> 0
A11: 3 | B11: =IF(C11=0,0,C10+1) -> 0 | C11: =IF($I$4=1,INDIRECT($I$5&"!B10"),INDIRECT($I$5&"!B30")) -> 0 | E11: 0 | F11: =E11-F10-F9 -> 0 | G11: =IF($I$3-(G10+G9+F11)>0,F11,IF(($I$3-(G10+G9+F11))<=0,($I$3-(G10+G9)))) -> 0 | I11: =IF($I$4=1,INDIRECT($I$5&"!C10"),INDIRECT($I$5&"!C30")) -> 0 | J11: =ROUND(G11*I11,2) -> 0
A12: 4 | B12: =IF(C12=0,0,C11+1) -> 0 | C12: =IF($I$4=1,INDIRECT($I$5&"!B11"),INDIRECT($I$5&"!B31")) -> 0 | E12: 0 | F12: =C12 -> 0 | G12: =IF($I$3-(G9+G10+G11)>0,$I$3-(G9+G10+G11),0) -> 999999999 | I12: =IF($I$4=1,INDIRECT($I$5&"!C11"),INDIRECT($I$5&"!C31")) -> 0 | J12: =ROUND(G12*I12,2) -> 0
G14: =SUM(G9:G13) -> 0 | J14: =SUM(J9:J13) -> 0
A19: 1 | B19: 1
A20: 2 | B20: 1
A21: 3 | B21: 1
A22: 4 | B22: 1
A23: 5 | B23: 1
A24: 6 | B24: 1
A25: 7 | B25: 1
A26: 8 | B26: 1

Sheet FISSA DEPFOGNA_NDOM (hidden)
A1: cdi_tariffa | B1: descrizione tariffa | C1: data variazione tariffaria
A2: 10016777 | B2: MULTIPLO QUOTA FISSA DEPUR/FOGNA NON DOMESTICO ATO MO | C2: 2023-01-01
A7: scaglione | B7: consumo scaglione | C7: importo per scaglione
A8: 1 | B8: 999999999 | C8: 21.542262
A21: codi_tariffa | B21: descrizione tariffa | C21: data variazione tariffaria
A22: 10018711 | B22: MULTIPLO QUOTA FISSA DEPUR/FOGNA NON DOMESTICO ATO MN | C22: 2023-01-01
A27: scaglione | B27: consumo scaglione | C27: importo per scaglione
A28: 1 | B28: 999999999 | C28: 18.619225
D35: numero componenti | F35: numero giorni
D36: 1 | F36: 365 | H36: consumo | I36: =Dichiarazione!P33 -> 
F37: =DATE(Dichiarazione!C6,12,31)-DATE(Dichiarazione!C6,1,1)+1 -> 366 | H37: ATO | I37: =IF(Dichiarazione!C11="MO",1,2) -> 2
H38: Tariffa
B40: Numero Unità | E40: Articolazione per numero componenti | I40: Tariffa €/mc
B42: =Dichiarazione!C26 -> 0 | F42: 999999999 | G42: =IF(I36-F42>=0,F42,I36) ->  | I42: =IF(I37=1,C8,C28) -> 18.619225 | J42: =ROUND(B42*I42,2) -> 0

Sheet FISSA ACQUEDOTTO_RES (hidden)
A1: cdi_tariffa | B1: descrizione tariffa | C1: data variazione tariffaria
A2: 10016768 | B2: MULTIPLO TARIFFA NOLO DOMESTICO RESIDENTE ATO MO | C2: 2023-01-01
A7: scaglione | B7: consumo scaglione | C7: importo per scaglione
A8: 1 | B8: 999999999 | C8: 6.462678
A21: codi_tariffa | B21: descrizione tariffa | C21: data variazione tariffaria
A22: 10017666 | B22: MULTIPLO TARIFFA NOLO DOMESTICO RESIDENTE ATO MN | C22: 2023-01-01
A27: scaglione | B27: consumo scaglione | C27: importo per scaglione
A28: 1 | B28: 999999999 | C28: 12.412817
D35: numero componenti | F35: numero giorni
D36: 1 | F36: 365 | H36: consumo | I36: =Dichiarazione!N33 -> 
F37: =DATE(Dichiarazione!C6,12,31)-DATE(Dichiarazione!C6,1,1)+1 -> 366 | H37: ATO | I37: =IF(Dichiarazione!C11="MO",1,2) -> 2
H38: Tariffa
B40: Numero Unità | E40: Articolazione per numero componenti | I40: Tariffa €/mc
B42: =SUM(Dichiarazione!C15:C22) -> 0 | F42: 999999999 | G42: =IF(I36-F42>=0,F42,I36) ->  | I42: =IF(I37=1,C8,C28) -> 12.412817 | J42: =ROUND(B42*I42,2) -> 0

Sheet FISSA ACQUEDOTTO_NRES (hidden)
A1: cdi_tariffa | B1: descrizione tariffa | C1: data variazione tariffaria
A2: 10016769 | B2: MULTIPLO TARIFFA NOLO DOMESTICO NON RESIDENTE ATO MO | C2: 2023-01-01
A7: scaglione | B7: consumo scaglione | C7: importo per scaglione
A8: 1 | B8: 999999999 | C8: 18.321693
A21: codi_tariffa | B21: descrizione tariffa | C21: data variazione tariffaria
A22: 10017665 | B22: MULTIPLO TARIFFA NOLO DOMESTICO NON RESIDENTE ATO MN | C22: 2023-01-01
A27: scaglione | B27: consumo scaglione | C27: importo per scaglione
A28: 1 | B28: 999999999 | C28: 12.412817
D35: numero componenti | F35: numero giorni
D36: 1 | F36: 365 | H36: consumo | I36: =Dichiarazione!O33 -> 
F37: =DATE(Dichiarazione!C6,12,31)-DATE(Dichiarazione!C6,1,1)+1 -> 366 | H37: ATO | I37: =IF(Dichiarazione!C11="MO",1,2) -> 2
H38: Tariffa
B40: Numero Unità | E40: Articolazione per numero componenti | I40: Tariffa €/mc
B42: =Dichiarazione!C24+SUM(Dichiarazione!C28:C29) -> 0 | F42: 999999999 | G42: =IF(I36-F42>=0,F42,I36) ->  | I42: =IF(I37=1,C8,C28) -> 12.412817 | J42: =ROUND(B42*I42,2) -> 0

Sheet FISSA ACQUEDOTTO_NDOM (hidden)
A1: cdi_tariffa | B1: descrizione tariffa | C1: data variazione tariffaria
A2: 10016770 | B2: MULTIPLO TARIFFA NOLO NON DOMESTICO ATO MO | C2: 2023-01-01
A7: scaglione | B7: consumo scaglione | C7: importo per scaglione
A8: 1 | B8: 999999999 | C8: 21.542261
A21: codi_tariffa | B21: descrizione tariffa | C21: data variazione tariffaria
A22: 10018705 | B22: MULTIPLO TARIFFA NOLO NON DOMESTICO ATO MN | C22: 2023-01-01
A27: scaglione | B27: consumo scaglione | C27: importo per scaglione
A28: 1 | B28: 999999999 | C28: 38.366888
D35: numero componenti | F35: numero giorni
D36: 1 | F36: 365 | H36: consumo | I36: =Dichiarazione!P33 -> 
F37: =DATE(Dichiarazione!C6,12,31)-DATE(Dichiarazione!C6,1,1)+1 -> 366 | H37: ATO | I37: =IF(Dichiarazione!C11="MO",1,2) -> 2
H38: Tariffa
B40: Numero Unità | E40: Articolazione per numero componenti | I40: Tariffa €/mc
B42: =Dichiarazione!C26 -> 0 | F42: 999999999 | G42: =IF(I36-F42>=0,F42,I36) ->  | I42: =IF(I37=1,C8,C28) -> 38.366888 | J42: =ROUND(B42*I42,2) -> 0

Sheet dati (hidden)
A1: TIPOLOGIA UTENZA | D1: NUMERO COMPONENTI | G1: Non risultano unità immobiliari con questo numero di componenti | I1: 1
A2: DOMESTICO RESIDENTE | D2: 1 | I2: 2
A3: DOMESTICO NON RESIDENTE | D3: 2 | I3: 3
A4: NON DOMESTICO | D4: 3 | I4: 4
D5: 4 | I5: 5
D6: 5 | I6: 6
D7: 6 | I7: 7
D8: 7 | I8: 8
D9: 8 e oltre | I9: 9
I10: 10
I11: 11
I12: 12
I13: 13
I14: 14
I15: 15
I16: 16
I17: 17
I18: 18
I19: 19
I20: 20

Sheet DOM RES (hidden)
D2: numero componenti | F2: numero giorni
D3: =IF(I4=1,Dichiarazione!R23,Dichiarazione!N15+Dichiarazione!N16+Dichiarazione!N17+Dichiarazione!N18+Dichiarazione!N19+Dichiarazione!N20+Dichiarazione!N21+Dichiarazione!N22) -> 0 | F3: 365 | H3: consumo | I3: =Dichiarazione!N33 -> 
F4: =DATE(Dichiarazione!C6,12,31)-DATE(Dichiarazione!C6,1,1)+1 -> 366 | H4: ATO | I4: =IF(Dichiarazione!C11="MO",1,2) -> 2
H5: Tariffa | I5: TAR_ACQ_DOM_RES
B7: Articolazione base | E7: Articolazione per numero componenti | I7: Tariffa €/mc
A9: 1 | B9: 0 | C9: =IF($I$4=1,INDIRECT($I$5&"!B8"),INDIRECT($I$5&"!B28")) -> 55 | E9: =IF(C9=MAX($C$9:$C$12),MAX(C9:C12),ROUND(C9*$D$3,0)) -> 0 | F9: =IF(C9=MAX($C$9:$C$12),MAX(C9:C12),ROUND(C9*$D$3,0)) -> 0 | G9: =IF($I$3-F9>0,F9,IF($I$3-F9<=0,$I$3)) ->  | I9: =IF($I$4=1,INDIRECT($I$5&"!C8"),INDIRECT($I$5&"!C28")) -> 0.686494 | J9: =ROUND(G9*I9,2) -> 
A10: 2 | B10: =IF(C10=0,0,C9+1) -> 56 | C10: =IF($I$4=1,INDIRECT($I$5&"!B9"),INDIRECT($I$5&"!B29")) -> 180 | E10: =IF(C10=MAX($C$9:$C$12),MAX(C10:C13),ROUND((C10*$D$3),0)) -> 0 | F10: =E10-F9 -> 0 | G10: =IF($I$3-(G9+F10)>0,F10,IF(($I$3-(G9+F10))<=0,$I$3-G9)) ->  | I10: =IF($I$4=1,INDIRECT($I$5&"!C9"),INDIRECT($I$5&"!C29")) -> 1.372988 | J10: =ROUND(G10*I10,2) -> 
A11: 3 | B11: =IF(C11=0,0,C10+1) -> 181 | C11: =IF($I$4=1,INDIRECT($I$5&"!B10"),INDIRECT($I$5&"!B30")) -> 240 | E11: =IF(C11=MAX($C$9:$C$12),MAX(C11:C14),ROUND((C11*$D$3),0)) -> 0 | F11: =E11-F10-F9 -> 0 | G11: =IF($I$3-(G10+G9+F11)>0,F11,IF(($I$3-(G10+G9+F11))<=0,($I$3-(G10+G9)))) ->  | I11: =IF($I$4=1,INDIRECT($I$5&"!C10"),INDIRECT($I$5&"!C30")) -> 1.510288 | J11: =ROUND(G11*I11,2) -> 
A12: 4 | B12: =IF(C12=0,0,C11+1) -> 241 | C12: =IF($I$4=1,INDIRECT($I$5&"!B11"),INDIRECT($I$5&"!B31")) -> 999999999 | E12: =IF(C12=MAX($C$9:$C$12),MAX(C12:C15),ROUND((C12*$D$3),0)) -> 999999999 | F12: =C12 -> 999999999 | G12: =IF($I$3-(G9+G10+G11)>0,$I$3-(G9+G10+G11),0) ->  | I12: =IF($I$4=1,INDIRECT($I$5&"!C11"),INDIRECT($I$5&"!C31")) -> 1.716236 | J12: =ROUND(G12*I12,2) -> 
G14: =SUM(G9:G13) ->  | J14: =SUM(J9:J13) -> 
A19: 1 | B19: 1
A20: 2 | B20: 1
A21: 3 | B21: 1
A22: 4 | B22: 1
A23: 5 | B23: 1
A24: 6 | B24: 1
A25: 7 | B25: 1
A26: 8 | B26: 1 | F26: =IF(D26=MAX($C$9:$C$12),MAX(D26:D29),ROUND(D26*$D$3,0)) -> 0
A27: 9 | B27: 1 | F27: =IF(D27=MAX($C$9:$C$12),MAX(D27:D30),ROUND((D27*$D$3),0)) -> 0
A28: 10 | B28: 1 | F28: =IF(D28=MAX($C$9:$C$12),MAX(D28:D31),ROUND((D28*$D$3),0)) -> 0
F29: =IF(D29=MAX($C$9:$C$12),MAX(D29:D32),ROUND((D29*$D$3),0)) -> 0

Sheet DOM RES_singolo (hidden)
I1: DOMESTICO RESIDENTE
D2: numero componenti | F2: numero giorni
D3: =IF(I4=1,Dichiarazione!T23,1) -> 1 | F3: 365 | H3: consumo | I3: =IF(Dichiarazione!H11='DOM RES_singolo'!I1,Dichiarazione!G23,"") -> 
F4: =DATE(Dichiarazione!C6,12,31)-DATE(Dichiarazione!C6,1,1)+1 -> 366 | H4: ATO | I4: =IF(Dichiarazione!C11="MO",1,2) -> 2
H5: Tariffa | I5: TAR_ACQ_DOM_RES
B7: Articolazione base | E7: Articolazione per numero componenti | I7: Tariffa €/mc
A9: 1 | B9: 0 | C9: =IF($I$4=1,INDIRECT($I$5&"!B8"),INDIRECT($I$5&"!B28")) -> 55 | E9: =IF(C9=MAX($C$9:$C$12),MAX(C9:C12),ROUND(C9*$D$3*LOOKUP($D$3,$A$19:$B$26,$B$19:$B$26)/$F$4*$F$3,0)) -> 55 | F9: =E9 -> 55 | G9: =IF($I$3-F9>0,F9,IF($I$3-F9<=0,$I$3)) ->  | I9: =IF($I$4=1,INDIRECT($I$5&"!C8"),INDIRECT($I$5&"!C28")) -> 0.686494 | J9: =ROUND(G9*I9,2) -> 
A10: 2 | B10: =IF(C10=0,0,C9+1) -> 56 | C10: =IF($I$4=1,INDIRECT($I$5&"!B9"),INDIRECT($I$5&"!B29")) -> 180 | E10: =IF(C10=MAX($C$9:$C$12),MAX(C10:C13),ROUND(C10*$D$3*LOOKUP($D$3,$A$19:$B$26,$B$19:$B$26)/$F$4*$F$3,0)) -> 180 | F10: =E10-F9 -> 125 | G10: =IF($I$3-(G9+F10)>0,F10,IF(($I$3-(G9+F10))<=0,$I$3-G9)) ->  | I10: =IF($I$4=1,INDIRECT($I$5&"!C9"),INDIRECT($I$5&"!C29")) -> 1.372988 | J10: =ROUND(G10*I10,2) -> 
A11: 3 | B11: =IF(C11=0,0,C10+1) -> 181 | C11: =IF($I$4=1,INDIRECT($I$5&"!B10"),INDIRECT($I$5&"!B30")) -> 240 | E11: 239 | F11: =E11-F10-F9 -> 59 | G11: =IF($I$3-(G10+G9+F11)>0,F11,IF(($I$3-(G10+G9+F11))<=0,($I$3-(G10+G9)))) ->  | I11: =IF($I$4=1,INDIRECT($I$5&"!C10"),INDIRECT($I$5&"!C30")) -> 1.510288 | J11: =ROUND(G11*I11,2) -> 
A12: 4 | B12: =IF(C12=0,0,C11+1) -> 241 | C12: =IF($I$4=1,INDIRECT($I$5&"!B11"),INDIRECT($I$5&"!B31")) -> 999999999 | E12: 999999999 | F12: =C12 -> 999999999 | G12: =IF($I$3-(G9+G10+G11)>0,$I$3-(G9+G10+G11),0) ->  | I12: =IF($I$4=1,INDIRECT($I$5&"!C11"),INDIRECT($I$5&"!C31")) -> 1.716236 | J12: =ROUND(G12*I12,2) -> 
G14: =SUM(G9:G13) ->  | J14: =SUM(J9:J13) -> 
A19: 1 | B19: 1
A20: 2 | B20: 1
A21: 3 | B21: 1
A22: 4 | B22: 1
A23: 5 | B23: 1
A24: 6 | B24: 1
A25: 7 | B25: 1
A26: 8 | B26: 1

Sheet TAR_ACQ_DOM_RES (hidden)
A1: cdi_tariffa | B1: descrizione tariffa | C1: data variazione tariffaria
A2: 10016765 | B2: MULTIPLO DOMESTICO RESIDENTE ATO MO | C2: 2023-01-01
A7: scaglione | B7: consumo scaglione | C7: importo per scaglione
A8: 1 | B8: 37 | C8: 0.818606
A9: 2 | B9: 55 | C9: 1.320937
A10: 3 | B10: 80 | C10: 1.824346
A11: 4 | B11: 999999999 | C11: 2.592612
A21: cdi_tariffa | B21: descrizione tariffa | C21: data variazione tariffaria
A22: 10017664 | B22: MULTIPLO DOMESTICO RESIDENTE ATO MN | C22: 2023-01-01
A23: 10017664 | B23: MULTIPLO DOMESTICO RESIDENTE ATO MN | C23: 2023-01-01
A24: 10017664 | B24: MULTIPLO DOMESTICO RESIDENTE ATO MN | C24: 2023-01-01
A25: 10017664 | B25: MULTIPLO DOMESTICO RESIDENTE ATO MN | C25: 2023-01-01
A27: scaglione | B27: consumo scaglione | C27: importo per scaglione
A28: 1 | B28: 55 | C28: 0.686494
A29: 2 | B29: 180 | C29: 1.372988
A30: 3 | B30: 240 | C30: 1.510288
A31: 4 | B31: 999999999 | C31: 1.716236

Sheet DOM NON RES (hidden)
D2: numero componenti | F2: numero giorni
D3: 1 | F3: 365 | H3: consumo | I3: =Dichiarazione!O33 -> 
F4: =DATE(Dichiarazione!C6,12,31)-DATE(Dichiarazione!C6,1,1)+1 -> 366 | H4: ATO | I4: =IF(Dichiarazione!C11="MO",1,2) -> 2
H5: Tariffa | I5: TAR_ACQ_DOM_NON_RES
B7: Articolazione base | E7: Articolazione per numero componenti | I7: Tariffa €/mc
A9: 1 | B9: 0 | C9: =IF($I$4=1,INDIRECT($I$5&"!B8"),INDIRECT($I$5&"!B28")) -> 180 | E9: =IF(E18<>999999999,E18*(SUM(Dichiarazione!O24,Dichiarazione!O28,Dichiarazione!O29)),'DOM NON RES'!E18) -> 0 | F9: =E9 -> 0 | G9: =IF($I$3-F9>0,F9,IF($I$3-F9<=0,$I$3)) ->  | I9: =IF($I$4=1,INDIRECT($I$5&"!C8"),INDIRECT($I$5&"!C28")) -> 1.372988 | J9: =ROUND(H19*I9,2) -> 
A10: 2 | B10: =IF(C10=0,0,C9+1) -> 181 | C10: =IF($I$4=1,INDIRECT($I$5&"!B9"),INDIRECT($I$5&"!B29")) -> 240 | E10: =IF(E19<>999999999,E19*(SUM(Dichiarazione!O25,Dichiarazione!O29,Dichiarazione!O30)),'DOM NON RES'!E19) -> 0 | F10: =IF(AND(E10<>999999999,E10<>0),E10-F9,E10) -> 0 | G10: =IF($I$3-(G9+F10)>0,F10,IF(($I$3-(G9+F10))<=0,$I$3-G9)) ->  | I10: =IF($I$4=1,INDIRECT($I$5&"!C9"),INDIRECT($I$5&"!C29")) -> 1.510288 | J10: =ROUND(H20*I10,2) -> 
A11: 3 | B11: =IF(C11=0,0,C10+1) -> 241 | C11: =IF($I$4=1,INDIRECT($I$5&"!B10"),INDIRECT($I$5&"!B30")) -> 999999999 | E11: =IF(E20<>999999999,E20*(SUM(Dichiarazione!O26,Dichiarazione!O30,Dichiarazione!O31)),'DOM NON RES'!E20) -> 999999999 | F11: =IF(AND(E11<>999999999,E11<>0),E11-(F9+F10),E11) -> 999999999 | G11: =IF($I$3-(G10+G9+F11)>0,F11,IF(($I$3-(G10+G9+F11))<=0,($I$3-(G10+G9)))) ->  | I11: =IF($I$4=1,INDIRECT($I$5&"!C10"),INDIRECT($I$5&"!C30")) -> 1.716236 | J11: =ROUND(H21*I11,2) -> 
A12: 4 | B12: =IF(C12=0,0,C11+1) -> 0 | C12: =IF($I$4=1,INDIRECT($I$5&"!B11"),INDIRECT($I$5&"!B31")) -> 0 | E12: =IF(E21<>999999999,E21*(SUM(Dichiarazione!O27,Dichiarazione!O31,Dichiarazione!O32)),'DOM NON RES'!E21) -> 0 | F12: =IF(AND(E12<>999999999,E12<>0),E12-(F9+F10+F11),E12) -> 0 | G12: =IF($I$3-(G9+G10+G11)>0,$I$3-(G9+G10+G11),0) ->  | I12: =IF($I$4=1,INDIRECT($I$5&"!C11"),INDIRECT($I$5&"!C31")) -> 0 | J12: =ROUND(H22*I12,2) -> 
G14: =SUM(G9:G13) ->  | J14: =SUM(J9:J13) -> 
E18: =IF(C9=MAX($C$9:$C$12),MAX(C9:C12),ROUND(C9*$D$3,0)) -> 180
A19: 1 | B19: 1 | E19: =IF(C10=MAX($C$9:$C$12),MAX(C10:C13),ROUND((C10*$D$3),0)) -> 240 | H19: =IF($I$3-E9>0,E9,IF($I$3-E9<=0,$I$3)) -> 
A20: 2 | B20: 1 | E20: =IF(C11=MAX($C$9:$C$12),MAX(C11:C14),ROUND((C11*$D$3),0)) -> 999999999 | F20: 999999999 | H20: =G10 -> 
A21: 3 | B21: 1 | E21: =IF(C12=MAX($C$9:$C$12),MAX(C12:C15),ROUND(C12*$D$3*LOOKUP($D$3,$A$19:$B$26,$B$19:$B$26)/$F$4*$F$3,0)) -> 0 | H21: =G11 -> 
A22: 4 | B22: 1 | H22: =G12 -> 
A23: 5 | B23: 1
A24: 6 | B24: 1
A25: 7 | B25: 1
A26: 8 | B26: 1
F28: 999999999
F31: SE(C9=MAX($C$9:$C$12);MAX(C9:C12);ARROTONDA(C9*$D$3*CERCA($D$3;$A$19:$B$26;$B$19:$B$26)/$F$4*$F$3;0))

Sheet TAR_ACQ_DOM_NON_RES (hidden)
A1: cdi_tariffa | B1: descrizione tariffa | C1: data variazione tariffaria
A2: 10016766 | B2: MULTIPLO DOMESTICO NON RESIDENTE ATO MO | C2: 2023-01-01
A3: 10016766 | B3: MULTIPLO DOMESTICO NON RESIDENTE ATO MO | C3: 2023-01-01
A7: scaglione | B7: consumo scaglione | C7: importo per scaglione
A8: 1 | B8: 156 | C8: 1.320937
A9: 2 | B9: 999999999 | C9: 1.824346
A21: cdi_tariffa | B21: descrizione tariffa | C21: data variazione tariffaria
A22: 10017663 | B22: MULTIPLO DOMESTICO NON RESIDENTE ATO MN | C22: 2023-01-01
A23: 10017663 | B23: MULTIPLO DOMESTICO NON RESIDENTE ATO MN | C23: 2023-01-01
A24: 10017663 | B24: MULTIPLO DOMESTICO NON RESIDENTE ATO MN | C24: 2023-01-01
A27: scaglione | B27: consumo scaglione | C27: importo per scaglione
A28: 1 | B28: 180 | C28: 1.372988
A29: 2 | B29: 240 | C29: 1.510288
A30: 3 | B30: 999999999 | C30: 1.716236

Sheet TAR_ACQ_NON_DOM (hidden)
A1: cdi_tariffa | B1: descrizione tariffa | C1: data variazione tariffaria
A2: 10016767 | B2: MULTIPLO CONSUMO NON DOMESTICO ATO MO | C2: 2023-01-01
A3: 10016767 | B3: MULTIPLO CONSUMO NON DOMESTICO ATO MO | C3: 2023-01-01
A4: 10016767 | B4: MULTIPLO CONSUMO NON DOMESTICO ATO MO | C4: 2023-01-01
A7: scaglione | B7: consumo scaglione | C7: importo per scaglione
A8: 1 | B8: 156 | C8: 1.320937
A9: 2 | B9: 12000 | C9: 1.824346
A10: 3 | B10: 999999999 | C10: 1.320937
A21: codi_tariffa | B21: descrizione tariffa | C21: data variazione tariffaria
A22: 10017662 | B22: MULTIPLO CONSUMO NON DOMESTICO ATO MN | C22: 2023-01-01
A23: 10017662 | B23: MULTIPLO CONSUMO NON DOMESTICO ATO MN | C23: 2023-01-01
A27: scaglione | B27: consumo scaglione | C27: importo per scaglione
A28: 1 | B28: 180 | C28: 1.372988
A29: 2 | B29: 999999999 | C29: 1.757425

Sheet FOG (hidden)
D2: numero componenti | F2: numero giorni
D3: 1 | F3: 365 | H3: consumo | I3: =Dichiarazione!C12 -> 0
F4: =DATE(Dichiarazione!C6,12,31)-DATE(Dichiarazione!C6,1,1)+1 -> 366 | H4: ATO | I4: =IF(Dichiarazione!C11="MO",1,2) -> 2
H5: Tariffa | I5: TAR_FOG
B7: Articolazione base | E7: Articolazione per numero componenti | I7: Tariffa €/mc
A9: 1 | B9: 0 | C9: =IF($I$4=1,INDIRECT($I$5&"!B8"),INDIRECT($I$5&"!B28")) -> 999999999 | E9: =IF(C9=MAX($C$9:$C$12),MAX(C9:C12),ROUND(C9*$D$3*LOOKUP($D$3,$A$19:$B$26,$B$19:$B$26)/$F$4*$F$3,0)) -> 999999999 | F9: =E9 -> 999999999 | G9: =IF($I$3-F9>0,F9,IF($I$3-F9<=0,$I$3)) -> 0 | I9: =IF($I$4=1,INDIRECT($I$5&"!C8"),INDIRECT($I$5&"!C28")) -> 0.282677 | J9: =ROUND(G9*I9,2) -> 0
A10: 2 | B10: =IF(C10=0,0,C9+1) -> 0 | C10: =IF($I$4=1,INDIRECT($I$5&"!B9"),INDIRECT($I$5&"!B29")) -> 0 | E10: =IF(C10=MAX($C$9:$C$12),MAX(C10:C13),ROUND(C10*$D$3*LOOKUP($D$3,$A$19:$B$26,$B$19:$B$26)/$F$4*$F$3,0)) -> 0 | F10: =E10-F9 -> -999999999 | G10: =IF($I$3-(G9+F10)>0,F10,IF(($I$3-(G9+F10))<=0,$I$3-G9)) -> -999999999 | I10: =IF($I$4=1,INDIRECT($I$5&"!C9"),INDIRECT($I$5&"!C29")) -> 0 | J10: =ROUND(G10*I10,2) -> 0
A11: 3 | B11: =IF(C11=0,0,C10+1) -> 0 | C11: =IF($I$4=1,INDIRECT($I$5&"!B10"),INDIRECT($I$5&"!B30")) -> 0 | E11: 0 | F11: =E11-F10-F9 -> 0 | G11: =IF($I$3-(G10+G9+F11)>0,F11,IF(($I$3-(G10+G9+F11))<=0,($I$3-(G10+G9)))) -> 0 | I11: =IF($I$4=1,INDIRECT($I$5&"!C10"),INDIRECT($I$5&"!C30")) -> 0 | J11: =ROUND(G11*I11,2) -> 0
A12: 4 | B12: =IF(C12=0,0,C11+1) -> 0 | C12: =IF($I$4=1,INDIRECT($I$5&"!B11"),INDIRECT($I$5&"!B31")) -> 0 | E12: 0 | F12: =C12 -> 0 | G12: =IF($I$3-(G9+G10+G11)>0,$I$3-(G9+G10+G11),0) -> 999999999 | I12: =IF($I$4=1,INDIRECT($I$5&"!C11"),INDIRECT($I$5&"!C31")) -> 0 | J12: =ROUND(G12*I12,2) -> 0
G14: =SUM(G9:G13) -> 0 | J14: =SUM(J9:J13) -> 0
A19: 1 | B19: 1
A20: 2 | B20: 1
A21: 3 | B21: 1
A22: 4 | B22: 1
A23: 5 | B23: 1
A24: 6 | B24: 1
A25: 7 | B25: 1
A26: 8 | B26: 1

Sheet TAR_FOG (hidden)
A1: cdi_tariffa | B1: descrizione tariffa | C1: data variazione tariffaria
A2: 4 | B2: QUOTA FOGNATURA GRUPPO 1 | C2: 2023-01-01
A7: scaglione | B7: consumo scaglione | C7: importo per scaglione
A8: 1 | B8: 999999999 | C8: 0.273325
A21: codi_tariffa | B21: descrizione tariffa | C21: data variazione tariffaria
A22: 10000650 | B22: QUOTA FOGNATURA COMUNI MN | C22: 2023-01-01
A27: scaglione | B27: consumo scaglione | C27: importo per scaglione
A28: 1 | B28: 999999999 | C28: 0.282677

Sheet DOM NON RES_singolo (hidden)
I1: DOMESTICO NON RESIDENTE
D2: numero componenti | F2: numero giorni
D3: 1 | F3: 365 | H3: consumo | I3: =IF(Dichiarazione!H11='DOM NON RES_singolo'!I1,Dichiarazione!G23,"") -> 
F4: =DATE(Dichiarazione!C6,12,31)-DATE(Dichiarazione!C6,1,1)+1 -> 366 | H4: ATO | I4: =IF(Dichiarazione!C11="MO",1,2) -> 2
H5: Tariffa | I5: TAR_ACQ_DOM_NON_RES
B7: Articolazione base | E7: Articolazione per numero componenti | I7: Tariffa €/mc
A9: 1 | B9: 0 | C9: =IF($I$4=1,INDIRECT($I$5&"!B8"),INDIRECT($I$5&"!B28")) -> 180 | E9: =IF(C9=MAX($C$9:$C$12),MAX(C9:C12),ROUND(C9*$D$3*LOOKUP($D$3,$A$19:$B$26,$B$19:$B$26)/$F$4*$F$3,0)) -> 180 | F9: =E9 -> 180 | G9: =IF($I$3-F9>0,F9,IF($I$3-F9<=0,$I$3)) ->  | I9: =IF($I$4=1,INDIRECT($I$5&"!C8"),INDIRECT($I$5&"!C28")) -> 1.372988 | J9: =ROUND(G9*I9,2) -> 
A10: 2 | B10: =IF(C10=0,0,C9+1) -> 181 | C10: =IF($I$4=1,INDIRECT($I$5&"!B9"),INDIRECT($I$5&"!B29")) -> 240 | E10: =IF(C10=MAX($C$9:$C$12),MAX(C10:C13),ROUND(C10*$D$3*LOOKUP($D$3,$A$19:$B$26,$B$19:$B$26)/$F$4*$F$3,0)) -> 239 | F10: =E10-F9 -> 59 | G10: =IF($I$3-(G9+F10)>0,F10,IF(($I$3-(G9+F10))<=0,$I$3-G9)) ->  | I10: =IF($I$4=1,INDIRECT($I$5&"!C9"),INDIRECT($I$5&"!C29")) -> 1.510288 | J10: =ROUND(G10*I10,2) -> 
A11: 3 | B11: =IF(C11=0,0,C10+1) -> 241 | C11: =IF($I$4=1,INDIRECT($I$5&"!B10"),INDIRECT($I$5&"!B30")) -> 999999999 | E11: 999999999 | F11: =E11-F10-F9 -> 999999760 | G11: =IF($I$3-(G10+G9+F11)>0,F11,IF(($I$3-(G10+G9+F11))<=0,($I$3-(G10+G9)))) ->  | I11: =IF($I$4=1,INDIRECT($I$5&"!C10"),INDIRECT($I$5&"!C30")) -> 1.716236 | J11: =ROUND(G11*I11,2) -> 
A12: 4 | B12: =IF(C12=0,0,C11+1) -> 0 | C12: =IF($I$4=1,INDIRECT($I$5&"!B11"),INDIRECT($I$5&"!B31")) -> 0 | E12: 0 | F12: =C12 -> 0 | G12: =IF($I$3-(G9+G10+G11)>0,$I$3-(G9+G10+G11),0) ->  | I12: =IF($I$4=1,INDIRECT($I$5&"!C11"),INDIRECT($I$5&"!C31")) -> 0 | J12: =ROUND(G12*I12,2) -> 
G14: =SUM(G9:G13) ->  | J14: =SUM(J9:J13) -> 
A19: 1 | B19: 1
A20: 2 | B20: 1
A21: 3 | B21: 1
A22: 4 | B22: 1
A23: 5 | B23: 1
A24: 6 | B24: 1
A25: 7 | B25: 1
A26: 8 | B26: 1

Sheet NON DOM (hidden)
D2: numero componenti | F2: numero giorni
D3: 1 | F3: 365 | H3: consumo | I3: =Dichiarazione!P33 -> 
F4: =DATE(Dichiarazione!C6,12,31)-DATE(Dichiarazione!C6,1,1)+1 -> 366 | H4: ATO | I4: =IF(Dichiarazione!C11="MO",1,2) -> 2
H5: Tariffa | I5: TAR_ACQ_NON_DOM
B7: Articolazione base | E7: Articolazione per numero componenti | I7: Tariffa €/mc
A9: 1 | B9: 0 | C9: =IF($I$4=1,INDIRECT($I$5&"!B8"),INDIRECT($I$5&"!B28")) -> 180 | E9: =IF(C9=MAX($C$9:$C$12),MAX(C9:C12),ROUND(C9*$D$3*LOOKUP($D$3,$A$19:$B$26,$B$19:$B$26)/$F$4*$F$3,0)) -> 180 | F9: =IF(E9<>999999999,E9*Dichiarazione!P26,'NON DOM'!E9) -> 0 | G9: =IF($I$3-F9>0,F9,IF($I$3-F9<=0,$I$3)) ->  | I9: =IF($I$4=1,INDIRECT($I$5&"!C8"),INDIRECT($I$5&"!C28")) -> 1.372988 | J9: =ROUND(G9*I9,2) -> 
A10: 2 | B10: =IF(C10=0,0,C9+1) -> 181 | C10: =IF($I$4=1,INDIRECT($I$5&"!B9"),INDIRECT($I$5&"!B29")) -> 999999999 | E10: =IF(C10=MAX($C$9:$C$12),MAX(C10:C13),ROUND(C10*$D$3*LOOKUP($D$3,$A$19:$B$26,$B$19:$B$26)/$F$4*$F$3,0)) -> 999999999 | F10: =IF(E10<>999999999,E10*Dichiarazione!P26,'NON DOM'!E10) -> 999999999 | G10: =IF($I$3-(G9+F10)>0,F10,IF(($I$3-(G9+F10))<=0,$I$3-G9)) ->  | I10: =IF($I$4=1,INDIRECT($I$5&"!C9"),INDIRECT($I$5&"!C29")) -> 1.757425 | J10: =ROUND(G10*I10,2) -> 
A11: 3 | B11: =IF(C11=0,0,C10+1) -> 0 | C11: =IF($I$4=1,INDIRECT($I$5&"!B10"),INDIRECT($I$5&"!B30")) -> 0 | E11: 0 | F11: =IF(E11<>999999999,E11*Dichiarazione!P26,'NON DOM'!E11) -> 0 | G11: =IF($I$3-(G10+G9+F11)>0,F11,IF(($I$3-(G10+G9+F11))<=0,($I$3-(G10+G9)))) ->  | I11: =IF($I$4=1,INDIRECT($I$5&"!C10"),INDIRECT($I$5&"!C30")) -> 0 | J11: =ROUND(G11*I11,2) -> 
A12: 4 | B12: =IF(C12=0,0,C11+1) -> 0 | C12: =IF($I$4=1,INDIRECT($I$5&"!B11"),INDIRECT($I$5&"!B31")) -> 0 | E12: 0 | F12: =IF(E12<>999999999,E12*Dichiarazione!P26,'NON DOM'!E12) -> 0 | G12: =IF($I$3-(G9+G10+G11)>0,$I$3-(G9+G10+G11),0) ->  | I12: =IF($I$4=1,INDIRECT($I$5&"!C11"),INDIRECT($I$5&"!C31")) -> 0 | J12: =ROUND(G12*I12,2) -> 
G14: =SUM(G9:G13) ->  | J14: =SUM(J9:J13) -> 
A19: 1 | B19: 1
A20: 2 | B20: 1
A21: 3 | B21: 1
A22: 4 | B22: 1
A23: 5 | B23: 1 | F23: 999999999
A24: 6 | B24: 1
A25: 7 | B25: 1
A26: 8 | B26: 1

Sheet NON DOM_singolo (hidden)
I1: NON DOMESTICO
D2: numero componenti | F2: numero giorni
D3: 1 | F3: 365 | H3: consumo | I3: =IF(Dichiarazione!H11='NON DOM_singolo'!I1,Dichiarazione!G23,"") -> 
F4: =DATE(Dichiarazione!C6,12,31)-DATE(Dichiarazione!C6,1,1)+1 -> 366 | H4: ATO | I4: =IF(Dichiarazione!C11="MO",1,2) -> 2
H5: Tariffa | I5: TAR_ACQ_NON_DOM
B7: Articolazione base | E7: Articolazione per numero componenti | I7: Tariffa €/mc
A9: 1 | B9: 0 | C9: =IF($I$4=1,INDIRECT($I$5&"!B8"),INDIRECT($I$5&"!B28")) -> 180 | E9: =IF(C9=MAX($C$9:$C$12),MAX(C9:C12),ROUND(C9*$D$3*LOOKUP($D$3,$A$19:$B$26,$B$19:$B$26)/$F$4*$F$3,0)) -> 180 | F9: =E9 -> 180 | G9: =IF($I$3-F9>0,F9,IF($I$3-F9<=0,$I$3)) ->  | I9: =IF($I$4=1,INDIRECT($I$5&"!C8"),INDIRECT($I$5&"!C28")) -> 1.372988 | J9: =ROUND(G9*I9,2) -> 
A10: 2 | B10: =IF(C10=0,0,C9+1) -> 181 | C10: =IF($I$4=1,INDIRECT($I$5&"!B9"),INDIRECT($I$5&"!B29")) -> 999999999 | E10: =IF(C10=MAX($C$9:$C$12),MAX(C10:C13),ROUND(C10*$D$3*LOOKUP($D$3,$A$19:$B$26,$B$19:$B$26)/$F$4*$F$3,0)) -> 999999999 | F10: =E10-F9 -> 999999819 | G10: =IF($I$3-(G9+F10)>0,F10,IF(($I$3-(G9+F10))<=0,$I$3-G9)) ->  | I10: =IF($I$4=1,INDIRECT($I$5&"!C9"),INDIRECT($I$5&"!C29")) -> 1.757425 | J10: =ROUND(G10*I10,2) -> 
A11: 3 | B11: =IF(C11=0,0,C10+1) -> 0 | C11: =IF($I$4=1,INDIRECT($I$5&"!B10"),INDIRECT($I$5&"!B30")) -> 0 | E11: 0 | F11: =E11-F10-F9 -> -999999999 | G11: =IF($I$3-(G10+G9+F11)>0,F11,IF(($I$3-(G10+G9+F11))<=0,($I$3-(G10+G9)))) ->  | I11: =IF($I$4=1,INDIRECT($I$5&"!C10"),INDIRECT($I$5&"!C30")) -> 0 | J11: =ROUND(G11*I11,2) -> 
A12: 4 | B12: =IF(C12=0,0,C11+1) -> 0 | C12: =IF($I$4=1,INDIRECT($I$5&"!B11"),INDIRECT($I$5&"!B31")) -> 0 | E12: 0 | F12: =C12 -> 0 | G12: =IF($I$3-(G9+G10+G11)>0,$I$3-(G9+G10+G11),0) ->  | I12: =IF($I$4=1,INDIRECT($I$5&"!C11"),INDIRECT($I$5&"!C31")) -> 0 | J12: =ROUND(G12*I12,2) -> 
G14: =SUM(G9:G13) ->  | J14: =SUM(J9:J13) -> 
A19: 1 | B19: 1
A20: 2 | B20: 1
A21: 3 | B21: 1
A22: 4 | B22: 1
A23: 5 | B23: 1
A24: 6 | B24: 1
A25: 7 | B25: 1
A26: 8 | B26: 1

Sheet FOG_singolo (hidden)
D2: numero componenti | F2: numero giorni
D3: 1 | F3: 365 | H3: consumo | I3: =Dichiarazione!G23 -> 
F4: =DATE(Dichiarazione!C6,12,31)-DATE(Dichiarazione!C6,1,1)+1 -> 366 | H4: ATO | I4: =IF(Dichiarazione!C11="MO",1,2) -> 2
H5: Tariffa | I5: TAR_FOG
B7: Articolazione base | E7: Articolazione per numero componenti | I7: Tariffa €/mc
A9: 1 | B9: 0 | C9: =IF($I$4=1,INDIRECT($I$5&"!B8"),INDIRECT($I$5&"!B28")) -> 999999999 | E9: =IF(C9=MAX($C$9:$C$12),MAX(C9:C12),ROUND(C9*$D$3*LOOKUP($D$3,$A$19:$B$26,$B$19:$B$26)/$F$4*$F$3,0)) -> 999999999 | F9: =E9 -> 999999999 | G9: =IF($I$3-F9>0,F9,IF($I$3-F9<=0,$I$3)) ->  | I9: =IF($I$4=1,INDIRECT($I$5&"!C8"),INDIRECT($I$5&"!C28")) -> 0.282677 | J9: =ROUND(G9*I9,2) -> 
A10: 2 | B10: =IF(C10=0,0,C9+1) -> 0 | C10: =IF($I$4=1,INDIRECT($I$5&"!B9"),INDIRECT($I$5&"!B29")) -> 0 | E10: =IF(C10=MAX($C$9:$C$12),MAX(C10:C13),ROUND(C10*$D$3*LOOKUP($D$3,$A$19:$B$26,$B$19:$B$26)/$F$4*$F$3,0)) -> 0 | F10: =E10-F9 -> -999999999 | G10: =IF($I$3-(G9+F10)>0,F10,IF(($I$3-(G9+F10))<=0,$I$3-G9)) ->  | I10: =IF($I$4=1,INDIRECT($I$5&"!C9"),INDIRECT($I$5&"!C29")) -> 0 | J10: =ROUND(G10*I10,2) -> 
A11: 3 | B11: =IF(C11=0,0,C10+1) -> 0 | C11: =IF($I$4=1,INDIRECT($I$5&"!B10"),INDIRECT($I$5&"!B30")) -> 0 | E11: 0 | F11: =E11-F10-F9 -> 0 | G11: =IF($I$3-(G10+G9+F11)>0,F11,IF(($I$3-(G10+G9+F11))<=0,($I$3-(G10+G9)))) ->  | I11: =IF($I$4=1,INDIRECT($I$5&"!C10"),INDIRECT($I$5&"!C30")) -> 0 | J11: =ROUND(G11*I11,2) -> 
A12: 4 | B12: =IF(C12=0,0,C11+1) -> 0 | C12: =IF($I$4=1,INDIRECT($I$5&"!B11"),INDIRECT($I$5&"!B31")) -> 0 | E12: 0 | F12: =C12 -> 0 | G12: =IF($I$3-(G9+G10+G11)>0,$I$3-(G9+G10+G11),0) ->  | I12: =IF($I$4=1,INDIRECT($I$5&"!C11"),INDIRECT($I$5&"!C31")) -> 0 | J12: =ROUND(G12*I12,2) -> 
G14: =SUM(G9:G13) ->  | J14: =SUM(J9:J13) -> 
A19: 1 | B19: 1
A20: 2 | B20: 1
A21: 3 | B21: 1
A22: 4 | B22: 1
A23: 5 | B23: 1
A24: 6 | B24: 1
A25: 7 | B25: 1
A26: 8 | B26: 1

Sheet DEP_singolo (hidden)
D2: numero componenti | F2: numero giorni
D3: 1 | F3: 365 | H3: consumo | I3: =Dichiarazione!G23 -> 
F4: =DATE(Dichiarazione!C6,12,31)-DATE(Dichiarazione!C6,1,1)+1 -> 366 | H4: ATO | I4: =IF(Dichiarazione!C11="MO",1,2) -> 2
H5: Tariffa | I5: TAR_DEP
B7: Articolazione base | E7: Articolazione per numero componenti | I7: Tariffa €/mc
A9: 1 | B9: 0 | C9: =IF($I$4=1,INDIRECT($I$5&"!B8"),INDIRECT($I$5&"!B28")) -> 999999999 | E9: =IF(C9=MAX($C$9:$C$12),MAX(C9:C12),ROUND(C9*$D$3*LOOKUP($D$3,$A$19:$B$26,$B$19:$B$26)/$F$4*$F$3,0)) -> 999999999 | F9: =E9 -> 999999999 | G9: =IF($I$3-F9>0,F9,IF($I$3-F9<=0,$I$3)) ->  | I9: =IF($I$4=1,INDIRECT($I$5&"!C8"),INDIRECT($I$5&"!C28")) -> 0.752226 | J9: =ROUND(G9*I9,2) -> 
A10: 2 | B10: =IF(C10=0,0,C9+1) -> 0 | C10: =IF($I$4=1,INDIRECT($I$5&"!B9"),INDIRECT($I$5&"!B29")) -> 0 | E10: =IF(C10=MAX($C$9:$C$12),MAX(C10:C13),ROUND(C10*$D$3*LOOKUP($D$3,$A$19:$B$26,$B$19:$B$26)/$F$4*$F$3,0)) -> 0 | F10: =E10-F9 -> -999999999 | G10: =IF($I$3-(G9+F10)>0,F10,IF(($I$3-(G9+F10))<=0,$I$3-G9)) ->  | I10: =IF($I$4=1,INDIRECT($I$5&"!C9"),INDIRECT($I$5&"!C29")) -> 0 | J10: =ROUND(G10*I10,2) -> 
A11: 3 | B11: =IF(C11=0,0,C10+1) -> 0 | C11: =IF($I$4=1,INDIRECT($I$5&"!B10"),INDIRECT($I$5&"!B30")) -> 0 | E11: 0 | F11: =E11-F10-F9 -> 0 | G11: =IF($I$3-(G10+G9+F11)>0,F11,IF(($I$3-(G10+G9+F11))<=0,($I$3-(G10+G9)))) ->  | I11: =IF($I$4=1,INDIRECT($I$5&"!C10"),INDIRECT($I$5&"!C30")) -> 0 | J11: =ROUND(G11*I11,2) -> 
A12: 4 | B12: =IF(C12=0,0,C11+1) -> 0 | C12: =IF($I$4=1,INDIRECT($I$5&"!B11"),INDIRECT($I$5&"!B31")) -> 0 | E12: 0 | F12: =C12 -> 0 | G12: =IF($I$3-(G9+G10+G11)>0,$I$3-(G9+G10+G11),0) ->  | I12: =IF($I$4=1,INDIRECT($I$5&"!C11"),INDIRECT($I$5&"!C31")) -> 0 | J12: =ROUND(G12*I12,2) -> 
G14: =SUM(G9:G13) ->  | J14: =SUM(J9:J13) -> 
A19: 1 | B19: 1
A20: 2 | B20: 1
A21: 3 | B21: 1
A22: 4 | B22: 1
A23: 5 | B23: 1
A24: 6 | B24: 1
A25: 7 | B25: 1
A26: 8 | B26: 1

Sheet TAR_DEP (hidden)
A1: cdi_tariffa | B1: descrizione tariffa | C1: data variazione tariffaria
A2: 6 | B2: QUOTA DEPURAZIONE | C2: 2023-01-01
A7: scaglione | B7: consumo scaglione | C7: importo per scaglione
A8: 1 | B8: 999999999 | C8: 0.694898
A21: codi_tariffa | B21: descrizione tariffa | C21: data variazione tariffaria
A22: 10000652 | B22: QUOTA DEPURAZIONE COMUNI MN | C22: 2023-01-01
A27: scaglione | B27: consumo scaglione | C27: importo per scaglione
A28: 1 | B28: 999999999 | C28: 0.752226
